bitfinex-derivatives/quotes_BTCF0:USTF0_20251216
["timestamp","ask_amount","ask_price","bid_price","bid_amount"]
[1765915453633,0.13398,87615.0,87614.0,0.43]
[1765915454149,0.145396,87615.0,87614.0,0.5112662]
[1765915454646,0.146396,87615.0,87614.0,0.5112662]
[1765915456142,0.002,87615.0,87614.0,0.5112662]
[1765915456544,0.06927,87615.0,87614.0,0.5112662]
[1765915456749,0.06827,87615.0,87614.0,0.5112662]
[1765915456948,0.13398,87628.0,87627.0,0.1504645]
[1765915457157,0.00017112,87631.0,87630.0,0.1504641]
[1765915457343,0.00017112,87631.0,87630.0,0.5112641]
[1765915458338,0.13398,87646.0,87645.0,0.150462]
[1765915458542,0.16083119,87646.0,87645.0,0.150462]
[1765915458741,0.09412119,87646.0,87645.0,0.150462]
[1765915459154,0.16083119,87646.0,87645.0,0.13905]
[1765915460349,0.1453925,87642.0,87641.0,0.43]
[1765915460558,0.145393,87638.0,87637.0,0.00017112]
[1765915460853,0.17224419,87638.0,87637.0,0.13922112]
[1765915461354,0.16083119,87638.0,87637.0,0.13922112]
[1765915461656,0.147392,87646.0,87645.0,0.13905]
[1765915461856,0.17323913,87646.0,87645.0,0.13905]
[1765915462256,0.17223913,87646.0,87645.0,0.13905]
[1765915463061,0.17323913,87646.0,87645.0,0.13905]
[1765915463356,0.17223913,87646.0,87645.0,0.13905]
[1765915463650,0.17323913,87646.0,87645.0,0.13905]
[1765915464253,0.16282713,87646.0,87645.0,0.13905]
[1765915464449,0.09611713,87646.0,87645.0,0.13905]
[1765915464649,0.02884713,87646.0,87645.0,0.13905]
[1765915464855,0.02784713,87646.0,87645.0,0.13905]
[1765915465251,0.001,87646.0,87645.0,0.13905]
[1765915465753,0.4394819,87647.0,87646.0,0.13905]
[1765915466153,0.5061919,87647.0,87646.0,0.13905]
[1765915467254,0.5071919,87647.0,87646.0,0.13905]
[1765915468356,0.5081919,87647.0,87646.0,0.13905]
[1765915470167,0.1473919,87647.0,87646.0,0.49985]
[1765915470465,0.0134119,87647.0,87646.0,0.49985]
[1765915470856,0.0806819,87647.0,87646.0,0.49985]
[1765915472164,0.0806819,87647.0,87646.0,0.511262]
[1765915472356,0.0796819,87647.0,87646.0,0.511262]
[1765915472964,0.0124119,87647.0,87646.0,0.511262]
[1765915473360,0.0134119,87647.0,87646.0,0.511262]
[1765915473562,0.002,87647.0,87646.0,0.511262]
[1765915474150,0.00017112,87654.0,87653.0,0.1486511]
[1765915474368,0.0114103,87659.0,87653.0,0.1486511]
[1765915474369,0.5064084,87674.0,87673.0,0.13724]
[1765915474555,0.56207658,87674.0,87673.0,0.13724]
[1765915474755,0.56207658,87674.0,87673.0,0.06764]
[1765915474950,0.0773899,87662.0,87661.0,0.53047]
[1765915476159,0.1410299,87662.0,87661.0,0.53047]
[1765915476465,0.1430299,87662.0,87661.0,0.49085]
[1765915476660,0.1430299,87662.0,87661.0,0.13005]
[1765915476973,0.1410308,87655.0,87654.0,0.13005]
[1765915477158,0.1410308,87655.0,87653.0,0.00017112]
[1765915477159,0.12962,87654.0,87653.0,0.00017112]
[1765915477360,0.12962,87654.0,87653.0,0.13022112]
[1765915478965,0.12962,87654.0,87653.0,0.13122112]
[1765915479861,0.3722095,87666.0,87665.0,0.13005]
[1765915480167,0.49042,87666.0,87665.0,0.13005]
[1765915480761,0.1410304,87658.0,87657.0,0.13005]
[1765915482264,0.1420304,87658.0,87657.0,0.13005]
[1765915482660,0.1430304,87658.0,87657.0,0.13005]
[1765915483266,0.1420304,87658.0,87657.0,0.13005]
[1765915484159,0.001,87658.0,87657.0,0.13005]
[1765915485070,0.0114101,87661.0,87660.0,0.13005]
[1765915485071,0.1410301,87661.0,87660.0,0.13005]
[1765915485578,0.12962,87661.0,87660.0,0.13005]
[1765915486776,0.12962,87658.0,87657.0,0.13005]
[1765915487579,0.141031,87654.0,87653.0,0.06516112]
[1765915487776,0.141031,87654.0,87653.0,0.13022112]
[1765915488273,0.16781608,87654.0,87653.0,0.00017112]
[1765915489177,0.16881608,87654.0,87653.0,0.13022112]
[1765915489880,0.16981608,87654.0,87653.0,0.13022112]
[1765915490275,0.16981608,87654.0,87653.0,0.06516112]
[1765915490582,0.16981608,87654.0,87653.0,0.13022112]
[1765915491976,0.16881608,87654.0,87653.0,0.13022112]
[1765915492178,0.16981608,87654.0,87653.0,0.13022112]
[1765915492881,0.16881608,87654.0,87653.0,0.13022112]
[1765915493071,0.16981608,87654.0,87653.0,0.13022112]
[1765915493570,0.02878508,87654.0,87653.0,0.13022112]
[1765915493769,0.02880064,87654.0,87653.0,0.13022112]
[1765915493970,0.002,87654.0,87653.0,0.13022112]
[1765915494174,0.17052,87654.0,87653.0,0.00017112]
[1765915494372,0.19732601,87654.0,87653.0,0.06516112]
[1765915494572,0.02880601,87654.0,87653.0,0.13022112]
[1765915495173,0.09378601,87654.0,87653.0,0.13022112]
[1765915495370,0.001,87654.0,87653.0,0.14163222]
[1765915495574,0.00017112,87670.0,87669.0,0.13005]
[1765915495979,0.02697592,87670.0,87669.0,0.13005]
[1765915497180,0.09295592,87670.0,87669.0,0.13005]
[1765915497384,0.15659592,87670.0,87669.0,0.13005]
[1765915498278,0.15659592,87670.0,87669.0,0.13105]
[1765915499186,0.15659592,87670.0,87669.0,0.13005]
[1765915500282,0.1410299,87662.0,87661.0,0.13915]
[1765915500476,0.0773899,87662.0,87661.0,0.24389]
[1765915500784,0.1410299,87662.0,87661.0,0.16973]
[1765915501370,0.1420299,87662.0,87661.0,0.13005]
[1765915501575,0.16883564,87662.0,87661.0,0.13005]
[1765915502176,0.1410307,87656.0,87655.0,0.49085]
[1765915502378,0.1410307,87656.0,87655.0,0.06499]
[1765915502575,0.16852,87654.0,87641.0,0.0114126]
[1765915502784,0.1953302,87654.0,87640.0,0.03968]
[1765915502980,0.1410326,87644.0,87643.0,0.1414623]
[1765915503880,0.3608,87657.0,87656.0,0.17654]
[1765915504190,0.38761507,87657.0,87656.0,0.17654]
[1765915504982,0.45433507,87657.0,87656.0,0.17654]
[1765915505382,0.38761507,87657.0,87656.0,0.17754]
[1765915506189,0.38761507,87657.0,87656.0,0.17854]
[1765915506386,0.06689112,87665.0,87664.0,0.1879497]
[1765915506587,0.16079415,87665.0,87664.0,0.1879497]
[1765915506783,0.13381,87662.0,87661.0,0.01141]
[1765915506980,0.16062303,87662.0,87661.0,0.14908]
[1765915507878,0.16062303,87662.0,87661.0,0.13767]
[1765915508187,0.1452206,87657.0,87656.0,0.00117112]
[1765915508381,0.17203363,87657.0,87656.0,0.00017112]
[1765915509496,0.17303363,87657.0,87656.0,0.00017112]
[1765915509790,0.17403363,87657.0,87656.0,0.00017112]
[1765915510181,0.17303363,87657.0,87656.0,0.00017112]
[1765915510382,0.17403363,87657.0,87656.0,0.00017112]
[1765915510890,0.17603363,87657.0,87656.0,0.00017112]
[1765915511483,0.17403363,87657.0,87656.0,0.00017112]
[1765915511793,0.13381,87636.0,87635.0,0.21185]
[1765915511982,0.17212649,87636.0,87635.0,0.21185]
[1765915512183,0.17212649,87636.0,87635.0,0.13767]
[1765915512383,0.17212649,87636.0,87635.0,0.06813]
[1765915512600,0.1452241,87630.0,87629.0,0.1490841]
[1765915513078,0.13381,87630.0,87629.0,0.1490841]
[1765915513289,0.06672,87635.0,87634.0,0.1490836]
[1765915513590,0.00017112,87638.0,87635.0,0.13767]
[1765915513591,0.001,87636.0,87635.0,0.13767]
[1765915514290,0.13481,87636.0,87635.0,0.13767]
[1765915514696,0.13481,87636.0,87635.0,0.13867]
[1765915514998,0.13381,87636.0,87635.0,0.13867]
[1765915515391,0.13381,87636.0,87635.0,0.13767]
[1765915515690,0.06672,87636.0,87635.0,0.49847]
[1765915516089,0.00017112,87638.0,87635.0,0.49847]
[1765915516090,0.00017112,87638.0,87637.0,0.13767]
[1765915517600,0.3608,87643.0,87642.0,0.1490825]
[1765915517796,0.145222,87646.0,87645.0,0.1490821]
[1765915517991,0.1452226,87641.0,87640.0,0.13767]
[1765915518197,0.2790326,87641.0,87640.0,0.13767]
[1765915518790,0.145223,87638.0,87637.0,0.001]
[1765915519295,0.145223,87638.0,87637.0,0.13867]
[1765915519890,0.145223,87638.0,87637.0,0.13767]
[1765915520492,0.0124127,87641.0,87640.0,0.17654]
[1765915520687,0.1462227,87641.0,87640.0,0.17654]
[1765915521195,0.1452227,87641.0,87640.0,0.13767]
[1765915521694,0.1452227,87641.0,87640.0,0.001]
[1765915522294,0.5060227,87641.0,87640.0,0.001]
[1765915522902,0.5070227,87641.0,87640.0,0.001]
[1765915523088,0.1452233,87636.0,87635.0,0.3608]
[1765915523292,0.1452233,87636.0,87635.0,0.49847]
[1765915523487,0.1452233,87636.0,87635.0,0.5098834]
[1765915523689,0.06672,87633.0,87632.0,0.00017112]
[1765915523893,0.1452237,87633.0,87632.0,0.00017112]
[1765915524095,0.1452237,87633.0,87632.0,0.13784112]
[1765915524907,0.1452237,87633.0,87632.0,0.00017112]
[1765915526603,0.1452237,87633.0,87632.0,0.13784112]
[1765915526993,0.1452237,87633.0,87632.0,0.06830112]
[1765915527195,0.1462237,87633.0,87632.0,0.06830112]
[1765915527406,0.1472237,87633.0,87632.0,0.13784112]
[1765915527588,0.1472237,87633.0,87632.0,0.06830112]
[1765915527901,0.1472237,87633.0,87632.0,0.00017112]
[1765915528406,0.1462237,87633.0,87632.0,0.00017112]
[1765915529101,0.5080237,87633.0,87632.0,0.00017112]
[1765915529305,0.1452243,87628.0,87627.0,0.07392]
[1765915529508,0.17209401,87628.0,87627.0,0.07392]
[1765915530203,0.10500401,87628.0,87627.0,0.21159]
[1765915530403,0.16067971,87628.0,87627.0,0.21159]
[1765915530606,0.06672,87628.0,87627.0,0.21159]
[1765915530794,0.078134,87631.0,87630.0,0.13767]
[1765915531003,0.145224,87631.0,87630.0,0.13767]
[1765915532004,0.13381,87631.0,87630.0,0.13767]
[1765915532298,0.7146,87647.0,87627.0,0.07492]
[1765915532299,0.1452235,87635.0,87634.0,0.1490836]
[1765915532498,0.17208721,87635.0,87634.0,0.1490836]
[1765915534013,0.17208721,87635.0,87634.0,0.13767]
[1765915535208,0.17208721,87635.0,87627.0,0.07392]
[1765915535209,0.1428043,87628.0,87627.0,0.20539]
[1765915535520,0.53047719,87628.0,87627.0,0.07392]
[1765915539825,0.53047719,87628.0,87627.0,0.0507342]
[1765915540121,0.53047719,87628.0,87618.0,0.00228265]
[1765915540122,0.1631655,87619.0,87618.0,0.00228265]
[1765915540423,0.19003839,87619.0,87618.0,0.00228265]
[1765915541526,0.19003839,87619.0,87618.0,0.00328265]
[1765915541726,0.19003839,87619.0,87618.0,0.00528265]
[1765915542929,0.19043357,87619.0,87618.0,0.00528265]
[1765915546622,0.17007357,87619.0,87618.0,0.14816825]
[1765915547228,0.21190357,87619.0,87618.0,0.07234265]
[1765915547423,0.21190357,87619.0,87618.0,0.13675265]
[1765915547728,0.17007357,87619.0,87618.0,0.13675265]
[1765915549032,0.21189357,87619.0,87618.0,0.13675265]
[1765915549222,0.17007357,87619.0,87618.0,0.13675265]
[1765915550132,0.21190357,87619.0,87618.0,0.00528265]
[1765915552137,0.21190357,87619.0,87618.0,0.13675265]
[1765915552438,0.02726807,87619.0,87618.0,0.13675265]
[1765915552624,0.0114148,87625.0,87624.0,0.13147]
[1765915552826,0.15882463,87627.0,87626.0,0.17323]
[1765915553025,0.15882346,87627.0,87626.0,0.17323]
[1765915554434,0.02743346,87627.0,87626.0,0.17323]
[1765915555133,0.00017112,87627.0,87626.0,0.17423]
[1765915555932,0.00017112,87627.0,87626.0,0.17523]
[1765915556132,0.00017112,87627.0,87626.0,0.17623]
[1765915557344,0.01158562,87627.0,87626.0,0.17623]
[1765915557550,0.01158562,87627.0,87626.0,0.17523]
[1765915558250,0.01158562,87627.0,87626.0,0.17423]
[1765915558449,0.01158562,87627.0,87626.0,0.17523]
[1765915559448,0.01158562,87627.0,87626.0,0.17423]
[1765915560348,0.00017112,87627.0,87626.0,0.17423]
[1765915560556,0.00017112,87627.0,87626.0,0.17323]
[1765915561450,0.00017112,87627.0,87626.0,0.17423]
[1765915561646,0.06816112,87627.0,87626.0,0.17423]
[1765915561846,0.13156112,87627.0,87626.0,0.13247]
[1765915562047,0.13156112,87627.0,87626.0,0.13147]
[1765915562252,0.00017112,87627.0,87626.0,0.17423]
[1765915562842,0.06816112,87627.0,87626.0,0.17423]
[1765915563146,0.00017112,87627.0,87626.0,0.17423]
[1765915563351,0.00017112,87627.0,87626.0,0.17523]
[1765915564351,0.00017112,87627.0,87626.0,0.17423]
[1765915564551,0.06733112,87627.0,87626.0,0.17523]
[1765915565046,0.13485112,87627.0,87626.0,0.17523]
[1765915565251,0.06733112,87627.0,87626.0,0.17423]
[1765915565553,0.00017112,87627.0,87626.0,0.17423]
[1765915566850,0.0114124,87643.0,87638.0,0.140753]
[1765915567055,0.0114124,87643.0,87642.0,0.1407525]
[1765915567554,0.0785724,87643.0,87642.0,0.1407525]
[1765915568056,0.0114124,87643.0,87642.0,0.1407525]
[1765915568449,0.0114124,87643.0,87642.0,0.1417525]
[1765915569351,0.0114124,87643.0,87642.0,0.13034]
[1765915569556,0.1460924,87643.0,87642.0,0.13034]
[1765915570456,0.0114124,87643.0,87642.0,0.13034]
[1765915570652,0.0114124,87643.0,87642.0,0.12934]
[1765915572659,0.0114124,87643.0,87642.0,0.1407525]
[1765915573056,0.0124124,87643.0,87642.0,0.1407525]
[1765915573855,0.0114124,87643.0,87642.0,0.1407525]
[1765915574255,0.13485112,87651.0,87650.0,0.12934]
[1765915574461,0.17341011,87651.0,87650.0,0.12934]
[1765915575958,0.17441011,87651.0,87650.0,0.12934]
[1765915576459,0.17541011,87651.0,87650.0,0.12934]
[1765915577653,0.17541011,87651.0,87650.0,0.06612]
[1765915577856,0.1460925,87642.0,87641.0,0.12934]
[1765915578567,0.146093,87638.0,87637.0,0.18009]
[1765915578864,0.506893,87638.0,87637.0,0.05075]
[1765915579053,0.53405846,87638.0,87637.0,0.05075]
[1765915580462,0.53405846,87638.0,87637.0,0.05175]
[1765915581963,0.53505846,87638.0,87637.0,0.05175]
[1765915582263,0.53605846,87638.0,87637.0,0.05075]
[1765915585154,0.59752957,87638.0,87637.0,0.05075]
[1765915586559,0.53605846,87638.0,87637.0,0.05075]
[1765915587163,0.1460955,87619.0,87618.0,0.13162265]
[1765915587361,0.17326096,87619.0,87618.0,0.00228265]
[1765915587555,0.17326096,87619.0,87618.0,0.06840265]
[1765915587756,0.17326096,87619.0,87618.0,0.13162265]
[1765915587961,0.17326096,87619.0,87618.0,0.14303825]
[1765915588164,0.17326096,87619.0,87618.0,0.13162265]
[1765915588652,0.17326096,87619.0,87618.0,0.13462265]
[1765915589052,0.17326096,87619.0,87618.0,0.17316265]
[1765915589257,0.1460955,87619.0,87618.0,0.17316265]
[1765915590369,0.0114155,87619.0,87618.0,0.17316265]
[1765915590868,0.49548,87625.0,87624.0,0.16788]
[1765915591070,0.53407282,87625.0,87624.0,0.16788]
[1765915591571,0.56318842,87625.0,87624.0,0.16788]
[1765915592269,0.56318842,87625.0,87624.0,0.16888]
[1765915592470,0.56318842,87625.0,87624.0,0.06712]
[1765915592769,0.56318842,87625.0,87624.0,0.001]
[1765915593267,0.56318842,87625.0,87624.0,0.06712]
[1765915593670,0.56318842,87625.0,87624.0,0.13034]
[1765915595473,0.56318842,87625.0,87624.0,0.17097]
[1765915595663,0.4684903,87625.0,87624.0,0.17097]
[1765915595969,0.56174649,87625.0,87624.0,0.17097]
[1765915597871,0.5345803,87625.0,87624.0,0.17097]
[1765915598268,0.1737803,87625.0,87624.0,0.17097]
[1765915598575,8.823e-05,87627.0,87626.0,0.12828]
[1765915601174,8.823e-05,87627.0,87626.0,0.13028]
[1765915601771,0.14256273,87627.0,87626.0,0.13028]
[1765915602068,0.14256273,87627.0,87626.0,0.13128]
[1765915602470,0.14256273,87627.0,87626.0,0.13028]
[1765915604067,0.14256273,87627.0,87626.0,0.12828]
[1765915604272,0.16951164,87627.0,87626.0,0.12928]
[1765915604977,0.16951164,87627.0,87626.0,0.12828]
[1765915605675,0.16951164,87627.0,87626.0,0.1396946]
[1765915605872,0.16951164,87627.0,87626.0,0.12828]
[1765915606275,0.1424755,87621.0,87620.0,0.12828]
[1765915606469,0.13106,87619.0,87618.0,0.06688636]
[1765915606670,0.51882734,87619.0,87618.0,0.00236636]
[1765915607469,0.1424779,87601.0,87600.0,0.16891]
[1765915607674,0.16946009,87601.0,87600.0,0.12828]
[1765915608476,0.15804219,87601.0,87600.0,0.12828]
[1765915608675,0.15904219,87601.0,87600.0,0.13228]
[1765915609381,0.13206,87601.0,87600.0,0.13228]
[1765915610678,0.13106,87601.0,87600.0,0.12928]
[1765915611876,0.15801861,87601.0,87600.0,0.001]
[1765915612280,0.15801861,87601.0,87600.0,0.12928]
[1765915614283,0.13106,87601.0,87600.0,0.12928]
[1765915614475,0.15799881,87601.0,87600.0,0.12928]
[1765915614883,0.15799934,87601.0,87600.0,0.12928]
[1765915615277,0.13106,87601.0,87600.0,0.06552]
[1765915615583,0.15799432,87601.0,87600.0,0.001]
[1765915617090,0.13106,87596.0,87595.0,0.00014655]
[1765915617274,0.53021282,87596.0,87595.0,0.00014655]
[1765915618279,0.53021282,87596.0,87595.0,0.00214655]
[1765915620078,0.53021282,87596.0,87595.0,0.13042655]
[1765915620279,0.53021282,87596.0,87595.0,0.06666655]
[1765915620880,0.53021282,87596.0,87595.0,0.00214655]
[1765915622290,0.53021282,87596.0,87578.0,0.3608]
[1765915622291,0.1424807,87579.0,87578.0,0.3608]
[1765915622782,0.0763904,87582.0,87581.0,0.12828]
[1765915622989,0.06497,87582.0,87581.0,0.12828]
[1765915623173,0.13106,87582.0,87581.0,0.12828]
[1765915623381,0.13118264,87582.0,87581.0,0.12828]
[1765915623686,0.00012264,87582.0,87581.0,0.12828]
[1765915624283,0.00012264,87582.0,87581.0,0.13128]
[1765915625288,0.00012264,87582.0,87581.0,0.13028]
[1765915625585,0.00012264,87582.0,87581.0,0.13128]
[1765915626587,0.00017123,87587.0,87586.0,0.1309]
[1765915626789,0.5051974,87605.0,87604.0,0.1423175]
[1765915627098,0.1443977,87602.0,87601.0,0.0768378]
[1765915627391,0.1443981,87599.0,87598.0,0.0114182]
[1765915627596,0.1443981,87599.0,87598.0,0.0768382]
[1765915627897,0.1443981,87599.0,87598.0,0.1423182]
[1765915628391,0.1443981,87599.0,87598.0,0.1309]
[1765915628787,0.1453981,87599.0,87598.0,0.1309]
[1765915629697,0.1463981,87599.0,87598.0,0.1309]
[1765915629893,0.144399,87592.0,87591.0,0.17143]
[1765915630393,0.1688,87591.0,87590.0,0.00017123]
[1765915631293,0.19585328,87591.0,87590.0,0.00017123]
[1765915634599,0.22505154,87591.0,87590.0,0.00017123]
[1765915634795,0.13298,87576.0,87575.0,0.06542]
[1765915634999,0.6502861,87585.0,87584.0,0.17274]
[1765915635299,0.53228823,87585.0,87584.0,0.17274]
[1765915635902,0.17148823,87585.0,87584.0,0.17274]
[1765915636601,0.17148823,87585.0,87584.0,0.17374]
[1765915636900,0.16006833,87585.0,87584.0,0.17374]
[1765915637091,0.02708833,87585.0,87584.0,0.17374]
[1765915637893,0.02708833,87585.0,87584.0,0.17474]
[1765915638403,0.16006833,87585.0,87584.0,0.17474]
[1765915638598,0.16006833,87585.0,87584.0,0.002]
[1765915638998,0.16006833,87585.0,87584.0,0.06742]
[1765915640306,0.16006833,87585.0,87584.0,0.002]
[1765915640500,0.16006833,87585.0,87584.0,0.06742]
[1765915640706,0.16006833,87585.0,87584.0,0.1329]
[1765915640899,0.16006833,87585.0,87584.0,0.17474]
[1765915641204,0.16006833,87585.0,87584.0,0.002]
[1765915641390,0.16011472,87585.0,87584.0,0.002]
[1765915642299,0.16011472,87585.0,87584.0,0.1329]
[1765915642498,0.16011472,87585.0,87584.0,0.17474]
[1765915643911,0.02713472,87585.0,87584.0,0.17474]
[1765915644408,0.3608,87597.0,87592.0,0.1309]
[1765915644610,0.02713734,87596.0,87592.0,0.142319]
[1765915644906,0.02730857,87593.0,87592.0,0.142319]
[1765915646396,0.09211238,87609.0,87608.0,0.1309]
[1765915646604,0.10282059,87609.0,87608.0,0.1309]
[1765915646812,0.17153059,87609.0,87608.0,0.1309]
[1765915647312,0.1443977,87602.0,87601.0,0.3608]
[1765915647506,0.1443984,87597.0,87596.0,0.1309]
[1765915648713,0.06427,87597.0,87596.0,0.1423185]
[1765915648900,0.1443981,87600.0,87599.0,0.1423181]
[1765915650010,0.1453981,87600.0,87599.0,0.1423181]
[1765915650206,0.1453981,87600.0,87599.0,0.1309]
[1765915650511,0.1453981,87600.0,87588.0,0.00017123]
[1765915650512,0.13298,87592.0,87591.0,0.1841592]
[1765915656517,0.06427,87592.0,87591.0,0.1841592]
[1765915656812,0.12693,87592.0,87591.0,0.1841592]
[1765915657611,0.011419,87593.0,87588.0,0.00017123]
[1765915657612,0.13123,87589.0,87588.0,0.06707123]
[1765915657806,0.15834742,87589.0,87588.0,0.00017123]
[1765915658308,0.16976682,87589.0,87588.0,0.00017123]
[1765915658704,0.16976682,87589.0,87588.0,0.00117123]
[1765915661313,0.16976682,87589.0,87588.0,0.06807123]
[1765915661618,0.16976682,87589.0,87588.0,0.13607123]
[1765915662001,0.16976682,87589.0,87588.0,0.14749083]
[1765915663606,0.0114188,87594.0,87588.0,0.01259083]
[1765915663811,0.4407882,87599.0,87598.0,0.1868182]
[1765915664007,0.39924467,87599.0,87598.0,0.1868182]
[1765915664205,0.38782647,87599.0,87598.0,0.1868182]
[1765915664408,0.02702647,87599.0,87598.0,0.1868182]
[1765915664616,0.3608,87607.0,87606.0,0.1463172]
[1765915664917,0.45639356,87607.0,87606.0,0.1463172]
[1765915665110,0.02878251,87614.0,87609.0,0.1463168]
[1765915665308,0.0270213,87613.0,87609.0,0.1463168]
[1765915665515,0.02834207,87617.0,87609.0,0.1463168]
[1765915665711,0.3608,87624.0,87623.0,0.146315]
[1765915665924,0.02701438,87624.0,87623.0,0.146315]
[1765915667722,0.09558438,87624.0,87623.0,0.146315]
[1765915668621,0.02701438,87624.0,87623.0,0.146315]
[1765915668824,0.00017123,87632.0,87631.0,0.1349]
[1765915669027,0.06874123,87632.0,87631.0,0.1349]
[1765915669326,0.13140123,87632.0,87631.0,0.1349]
[1765915675029,0.13240123,87632.0,87631.0,0.1349]
[1765915676529,0.13140123,87632.0,87631.0,0.1349]
[1765915677527,0.13240123,87632.0,87631.0,0.1349]
[1765915678128,0.13123,87625.0,87624.0,0.1754]
[1765915678525,0.1426447,87625.0,87624.0,0.1868149]
[1765915679429,0.1426447,87625.0,87624.0,0.1473149]
[1765915680430,0.1436447,87625.0,87624.0,0.1463149]
[1765915680924,0.1446447,87625.0,87624.0,0.1463149]
[1765915682128,0.1436447,87625.0,87624.0,0.1463149]
[1765915682330,0.1446447,87625.0,87624.0,0.1463149]
[1765915682718,0.07057,87625.0,87624.0,0.1463149]
[1765915682925,0.002,87625.0,87624.0,0.1463149]
[1765915683324,0.001,87625.0,87624.0,0.1463149]
[1765915683626,0.002,87625.0,87624.0,0.1463149]
[1765915683834,0.00017123,87632.0,87631.0,0.1394439]
[1765915684332,0.06790123,87632.0,87631.0,0.1394439]
[1765915684635,0.00017123,87632.0,87631.0,0.5002439]
[1765915685623,0.12931,87646.0,87645.0,0.1372221]
[1765915685821,0.3608,87654.0,87651.0,0.1372213]
[1765915685822,0.12931,87652.0,87651.0,0.1372213]
[1765915686130,0.15621301,87652.0,87651.0,0.1372213]
[1765915686532,0.12931,87652.0,87651.0,0.1372213]
[1765915688335,0.15668412,87652.0,87651.0,0.1372213]
[1765915688537,0.15668412,87652.0,87651.0,0.1382213]
[1765915688728,0.12931,87652.0,87651.0,0.1382213]
[1765915689128,0.12931,87652.0,87651.0,0.12681]
[1765915689333,0.1576855,87652.0,87651.0,0.12581]
[1765915690129,0.1566855,87652.0,87651.0,0.12581]
[1765915690335,0.1576855,87652.0,87651.0,0.12581]
[1765915690727,0.1586855,87652.0,87651.0,0.12581]
[1765915691534,0.1576855,87652.0,87651.0,0.12581]
[1765915691735,0.1586855,87652.0,87651.0,0.12581]
[1765915695139,0.0283755,87652.0,87651.0,0.12681]
[1765915695637,0.00228161,87658.0,87651.0,0.12681]
[1765915695638,0.00228161,87658.0,87657.0,0.1372206]
[1765915695941,0.13159161,87658.0,87657.0,0.1372206]
[1765915696534,0.07001161,87658.0,87657.0,0.1372206]
[1765915696934,0.07001161,87658.0,87657.0,0.1382206]
[1765915697345,0.07001161,87658.0,87657.0,0.1372206]
[1765915697748,0.00228161,87658.0,87657.0,0.1382206]
[1765915698546,0.00228161,87658.0,87657.0,0.1372206]
[1765915698732,0.00017113,87660.0,87659.0,0.12581]
[1765915698933,0.12922389,87683.0,87682.0,0.16358]
[1765915699128,0.06773,87684.0,87683.0,0.12581]
[1765915699346,0.12931,87684.0,87683.0,0.12581]
[1765915700132,0.09685452,87687.0,87686.0,0.12581]
[1765915700434,0.09685452,87687.0,87684.0,0.011407]
[1765915700435,0.16919641,87692.0,87691.0,0.12581]
[1765915701139,0.12948113,87692.0,87691.0,0.12581]
[1765915701342,0.00017113,87692.0,87691.0,0.12581]
[1765915701645,0.00117113,87692.0,87691.0,0.12581]
[1765915701848,0.13048113,87692.0,87691.0,0.12581]
[1765915702044,0.00117113,87692.0,87691.0,0.12581]
[1765915702240,0.13048113,87692.0,87691.0,0.12581]
[1765915702840,0.06890113,87692.0,87691.0,0.12581]
[1765915703443,0.13048113,87692.0,87691.0,0.12581]
[1765915703642,0.13048113,87692.0,87691.0,0.06468]
[1765915703834,0.13048113,87692.0,87682.0,0.0491772]
[1765915704034,0.12931,87683.0,87682.0,0.1749872]
[1765915705045,0.12931,87683.0,87682.0,0.1759872]
[1765915705247,0.00017113,87692.0,87682.0,0.1759872]
[1765915705248,0.12931,87690.0,87689.0,0.12581]
[1765915705937,0.00017113,87692.0,87691.0,0.12581]
[1765915706138,0.06790113,87692.0,87691.0,0.12581]
[1765915706452,0.12948113,87692.0,87691.0,0.12581]
[1765915707647,0.13048113,87692.0,87691.0,0.12581]
[1765915710148,0.15767583,87692.0,87691.0,0.12581]
[1765915710756,0.1407161,87691.0,87690.0,0.0114063]
[1765915711147,0.1407161,87691.0,87690.0,0.1372163]
[1765915711651,0.1679137,87691.0,87690.0,0.1372163]
[1765915712652,0.1679137,87691.0,87690.0,0.12581]
[1765915712851,0.12931,87676.0,87675.0,0.13738933]
[1765915714658,0.1575383,87676.0,87675.0,0.12598113]
[1765915714955,0.1575383,87676.0,87675.0,0.00017113]
[1765915716049,0.1565383,87676.0,87675.0,0.00017113]
[1765915716251,0.1575383,87676.0,87675.0,0.00017113]
[1765915716451,0.1575383,87676.0,87675.0,0.06228113]
[1765915716656,0.1575383,87676.0,87675.0,0.00017113]
[1765915716861,0.1565383,87676.0,87675.0,0.00017113]
[1765915717063,0.1575383,87676.0,87675.0,0.00017113]
[1765915717258,0.1575383,87676.0,87675.0,0.11973113]
[1765915717465,0.1575383,87676.0,87675.0,0.15547113]
[1765915718556,0.0282283,87676.0,87675.0,0.15547113]
[1765915719253,0.0292283,87676.0,87675.0,0.15547113]
[1765915719564,0.0282283,87676.0,87675.0,0.15547113]
[1765915719753,0.0272283,87676.0,87675.0,0.15647113]
[1765915720267,0.1270775,87681.0,87680.0,0.11956]
[1765915720458,0.14252362,87681.0,87680.0,0.1309676]
[1765915721862,0.08551362,87681.0,87680.0,0.1309676]
[1765915722461,0.14252362,87681.0,87680.0,0.1309676]
[1765915724269,0.14352362,87681.0,87680.0,0.1309676]
[1765915725154,0.15493102,87681.0,87680.0,0.1309676]
[1765915725558,0.1270778,87678.0,87677.0,0.0735179]
[1765915725754,0.1270781,87676.0,87675.0,0.00017113]
[1765915725966,0.15393172,87676.0,87675.0,0.00017113]
[1765915726162,0.15393172,87676.0,87675.0,0.11973113]
[1765915726868,0.15493172,87676.0,87675.0,0.11973113]
[1765915727560,0.15393172,87676.0,87675.0,0.11973113]
[1765915727962,0.15393172,87676.0,87675.0,0.00017113]
[1765915728470,0.15393172,87676.0,87675.0,0.15547113]
[1765915729268,0.15493172,87676.0,87675.0,0.15547113]
[1765915729865,0.15393172,87676.0,87675.0,0.15547113]
[1765915730267,0.15393172,87676.0,87675.0,0.00017113]
[1765915731269,0.15393172,87676.0,87675.0,0.01157933]
[1765915731470,0.15493172,87676.0,87675.0,0.07368933]
[1765915731659,0.15493172,87676.0,87675.0,0.13113933]
[1765915732062,0.14252362,87676.0,87675.0,0.13113933]
[1765915732265,0.14352362,87676.0,87675.0,0.13113933]
[1765915732970,0.14252362,87676.0,87675.0,0.13113933]
[1765915733873,0.14252362,87676.0,87675.0,0.13213933]
[1765915734462,0.14252362,87676.0,87675.0,0.13313933]
[1765915735371,0.14252362,87676.0,87630.0,0.03574]
[1765915735372,0.0114107,87657.0,87630.0,0.03574]
[1765915735571,0.0114124,87643.0,87642.0,0.03574]
[1765915735772,0.0114124,87643.0,87642.0,0.1553]